[Event "Early-Titled-Tuesday-Blitz-September-12-2023"]
[Site "Chess.com"]
[Date "2023.09.12"]
[Round "9"]
[White "McCarthyStone"]
[Black "CraiggoryC"]
[Result "1/2-1/2"]
[WhiteElo "2452"]
[BlackElo "2230"]
[TimeControl "180+1"]
[EndTime "9:46:04 PDT"]
[Termination "Game drawn - insufficient material"]

1. d4 {[%clk 0:02:59.5]} 1... e6 {[%clk 0:01:53.8]} 2. Nf3 {[%clk 0:02:58]} 2...
Nf6 {[%clk 0:01:53.8]} 3. g3 {[%clk 0:02:57.9]} 3... Be7 {[%clk 0:01:53]} 4. Bg2
{[%clk 0:02:57.9]} 4... d5 {[%clk 0:01:53.6]} 5. O-O {[%clk 0:02:58.6]} 5... O-O
{[%clk 0:01:54.1]} 6. c4 {[%clk 0:02:58.1]} 6... dxc4 {[%clk 0:01:55]} 7. Qc2
{[%clk 0:02:54.9]} 7... a6 {[%clk 0:01:55.6]} 8. a4 {[%clk 0:02:54.6]} 8... Bd7
{[%clk 0:01:56.1]} 9. Ne5 {[%clk 0:02:51.9]} 9... Nc6 {[%clk 0:01:53.8]} 10.
Nxc4 {[%clk 0:02:47.1]} 10... Nxd4 {[%clk 0:01:50.5]} 11. Qd1 {[%clk 0:02:41.1]}
11... Bc6 {[%clk 0:01:47.7]} 12. f3 {[%clk 0:02:31.3]} 12... Qd5 {[%clk
0:01:29]} 13. b3 {[%clk 0:02:16.4]} 13... Rfd8 {[%clk 0:01:12.7]} 14. Nc3 {[%clk
0:02:14.9]} 14... Qh5 {[%clk 0:00:56]} 15. e4 {[%clk 0:01:26.5]} 15... Bb4
{[%clk 0:00:20]} 16. Bb2 {[%clk 0:01:23]} 16... Qc5 {[%clk 0:00:16.6]} 17. Kh1
{[%clk 0:01:22.3]} 17... Nb5 {[%clk 0:00:12.8]} 18. Qc1 {[%clk 0:01:13.7]} 18...
Nxc3 {[%clk 0:00:12.9]} 19. Bxc3 {[%clk 0:01:14.4]} 19... Bxc3 {[%clk
0:00:13.4]} 20. Qxc3 {[%clk 0:01:15.3]} 20... b5 {[%clk 0:00:13.6]} 21. Qe5
{[%clk 0:01:10.3]} 21... Qxe5 {[%clk 0:00:08.4]} 22. Nxe5 {[%clk 0:01:10.7]}
22... Bb7 {[%clk 0:00:09.3]} 23. Rac1 {[%clk 0:01:09.2]} 23... Rac8 {[%clk
0:00:07]} 24. Nc6 {[%clk 0:01:08.5]} 24... Bxc6 {[%clk 0:00:06.9]} 25. Rxc6
{[%clk 0:01:09.3]} 25... Rd6 {[%clk 0:00:07.4]} 26. Rc2 {[%clk 0:01:04.1]} 26...
Rd3 {[%clk 0:00:07.2]} 27. Rb1 {[%clk 0:00:55.8]} 27... b4 {[%clk 0:00:06.6]}
28. Kg1 {[%clk 0:00:52.9]} 28... Nd7 {[%clk 0:00:06.1]} 29. Kf2 {[%clk
0:00:53.1]} 29... c5 {[%clk 0:00:05.5]} 30. Bf1 {[%clk 0:00:52.4]} 30... Rd4
{[%clk 0:00:05.3]} 31. Bxa6 {[%clk 0:00:51.6]} 31... Rd8 {[%clk 0:00:05.7]} 32.
Rbc1 {[%clk 0:00:50.9]} 32... f6 {[%clk 0:00:04.5]} 33. Bc4 {[%clk 0:00:50]}
33... Kf7 {[%clk 0:00:04.9]} 34. a5 {[%clk 0:00:47.5]} 34... Ne5 {[%clk
0:00:05.2]} 35. Be2 {[%clk 0:00:43.1]} 35... Nd3+ {[%clk 0:00:04.1]} 36. Bxd3
{[%clk 0:00:42.9]} 36... Rxd3 {[%clk 0:00:05]} 37. Rxc5 {[%clk 0:00:42.7]} 37...
Rxb3 {[%clk 0:00:05.7]} 38. R1c2 {[%clk 0:00:41.8]} 38... Rdd3 {[%clk
0:00:05.7]} 39. f4 {[%clk 0:00:40.4]} 39... Rf3+ {[%clk 0:00:05.9]} 40. Kg2
{[%clk 0:00:40.7]} 40... Rfc3 {[%clk 0:00:05.1]} 41. R5xc3 {[%clk 0:00:40.2]}
41... bxc3 {[%clk 0:00:05.7]} 42. Kf3 {[%clk 0:00:38.7]} 42... Ra3 {[%clk
0:00:05.4]} 43. Ke3 {[%clk 0:00:38.2]} 43... e5 {[%clk 0:00:05.6]} 44. f5 {[%clk
0:00:37.8]} 44... Ke7 {[%clk 0:00:05.8]} 45. Kd3 {[%clk 0:00:37.7]} 45... Rxa5
{[%clk 0:00:05.9]} 46. Rxc3 {[%clk 0:00:38]} 46... Kd6 {[%clk 0:00:06.6]} 47.
Rb3 {[%clk 0:00:37.7]} 47... Ra4 {[%clk 0:00:06.9]} 48. Rb7 {[%clk 0:00:36]}
48... Ra3+ {[%clk 0:00:07.3]} 49. Ke2 {[%clk 0:00:35.9]} 49... Kc5 {[%clk
0:00:07.5]} 50. Rxg7 {[%clk 0:00:33.1]} 50... Kd4 {[%clk 0:00:07.9]} 51. Rxh7
{[%clk 0:00:31.8]} 51... Kxe4 {[%clk 0:00:08.4]} 52. Rh4+ {[%clk 0:00:32.4]}
52... Kxf5 {[%clk 0:00:08.6]} 53. Rb4 {[%clk 0:00:33.1]} 53... Ra2+ {[%clk
0:00:08.9]} 54. Kf3 {[%clk 0:00:33.4]} 54... Rxh2 {[%clk 0:00:09.6]} 55. Rb6
{[%clk 0:00:33.3]} 55... Kg6 {[%clk 0:00:09.7]} 56. Kg4 {[%clk 0:00:33.4]} 56...
Rf2 {[%clk 0:00:09.4]} 57. Rc6 {[%clk 0:00:33]} 57... Ra2 {[%clk 0:00:09.4]} 58.
Re6 {[%clk 0:00:32.7]} 58... Ra4+ {[%clk 0:00:09.8]} 59. Kf3 {[%clk 0:00:32.6]}
59... Kf5 {[%clk 0:00:10.5]} 60. Rb6 {[%clk 0:00:32.3]} 60... Ra3+ {[%clk
0:00:10.9]} 61. Kf2 {[%clk 0:00:31.8]} 61... Kg4 {[%clk 0:00:10.8]} 62. Rxf6
{[%clk 0:00:31.5]} 62... Ra2+ {[%clk 0:00:09]} 63. Ke3 {[%clk 0:00:30.2]} 63...
Kxg3 {[%clk 0:00:09.1]} 64. Rg6+ {[%clk 0:00:29.9]} 64... Kh4 {[%clk 0:00:09.4]}
65. Ke4 {[%clk 0:00:28.4]} 65... Ra4+ {[%clk 0:00:09.5]} 66. Kxe5 {[%clk
0:00:28.1]} 66... Ra5+ {[%clk 0:00:09.6]} 67. Kd4 {[%clk 0:00:28.6]} 67... Ra4+
{[%clk 0:00:09.9]} 68. Kc3 {[%clk 0:00:28.8]} 68... Rg4 {[%clk 0:00:10.1]} 69.
Rxg4+ {[%clk 0:00:26.8]} 69... Kxg4 {[%clk 0:00:10.4]} 1/2-1/2

[Event "Early-Titled-Tuesday-Blitz-September-12-2023"]
[Site "Chess.com"]
[Date "2023.09.12"]
[Round "9"]
[White "noblerone"]
[Black "Hasangatin_Ramil"]
[Result "0-1"]
[WhiteElo "2530"]
[BlackElo "2721"]
[TimeControl "180+1"]
[EndTime "9:46:06 PDT"]
[Termination "Hasangatin_Ramil won on time"]

1. d4 {[%clk 0:02:53.7]} 1... Nf6 {[%clk 0:02:40.4]} 2. Nf3 {[%clk 0:02:53.7]}
2... c5 {[%clk 0:02:40.9]} 3. c3 {[%clk 0:02:52.6]} 3... cxd4 {[%clk 0:02:39.6]}
4. cxd4 {[%clk 0:02:53.5]} 4... d5 {[%clk 0:02:40.2]} 5. Nc3 {[%clk 0:02:53]}
5... Nc6 {[%clk 0:02:40.8]} 6. Bf4 {[%clk 0:02:50.8]} 6... e6 {[%clk 0:02:41.3]}
7. e3 {[%clk 0:02:50.8]} 7... Qb6 {[%clk 0:02:41.3]} 8. Bb5 {[%clk 0:02:49.1]}
8... Be7 {[%clk 0:02:41.3]} 9. O-O {[%clk 0:02:48.8]} 9... O-O {[%clk
0:02:41.9]} 10. Rc1 {[%clk 0:02:48]} 10... Bd7 {[%clk 0:02:42.2]} 11. Qe2 {[%clk
0:02:44.3]} 11... Rfc8 {[%clk 0:02:41.4]} 12. h3 {[%clk 0:02:39.4]} 12... Be8
{[%clk 0:02:41.2]} 13. Ne5 {[%clk 0:02:21.6]} 13... Nxe5 {[%clk 0:02:39.1]} 14.
Bxe5 {[%clk 0:02:21.8]} 14... Rxc3 {[%clk 0:02:37.8]} 15. Bxe8 {[%clk
0:02:21.9]} 15... Rxc1 {[%clk 0:02:37.3]} 16. Bxf7+ {[%clk 0:02:22.3]} 16...
Kxf7 {[%clk 0:02:36.3]} 17. Rxc1 {[%clk 0:02:22.4]} 17... Ne8 {[%clk 0:02:21.2]}
18. Qg4 {[%clk 0:02:01.5]} 18... Bf6 {[%clk 0:02:18.4]} 19. Qf4 {[%clk
0:01:57.2]} 19... Kg8 {[%clk 0:02:16.2]} 20. Bxf6 {[%clk 0:01:56.5]} 20... Nxf6
{[%clk 0:02:15.3]} 21. Rc7 {[%clk 0:01:54.2]} 21... Qxb2 {[%clk 0:02:06]} 22.
Qd6 {[%clk 0:01:32.4]} 22... Qb1+ {[%clk 0:02:03.5]} 23. Kh2 {[%clk 0:01:32.3]}
23... Qf5 {[%clk 0:01:50.4]} 24. Qe7 {[%clk 0:01:28.9]} 24... Nh5 {[%clk
0:01:40.6]} 25. f4 {[%clk 0:01:15.7]} 25... Qf6 {[%clk 0:01:30.4]} 26. Qd7
{[%clk 0:01:13.9]} 26... Qf8 {[%clk 0:01:10.8]} 27. Qxe6+ {[%clk 0:01:07.6]}
27... Kh8 {[%clk 0:01:10.4]} 28. Qxd5 {[%clk 0:01:05.2]} 28... Nxf4 {[%clk
0:01:10.4]} 29. Qxb7 {[%clk 0:00:58.8]} 29... Ne6 {[%clk 0:00:42.1]} 30. Re7
{[%clk 0:00:54.4]} 30... Rb8 {[%clk 0:00:35]} 31. Qxa7 {[%clk 0:00:47.8]} 31...
Re8 {[%clk 0:00:29.4]} 32. Rxe8 {[%clk 0:00:37.5]} 32... Qxe8 {[%clk 0:00:30.3]}
33. a4 {[%clk 0:00:32.4]} 33... h6 {[%clk 0:00:30]} 34. a5 {[%clk 0:00:32.2]}
34... Ng5 {[%clk 0:00:30.6]} 35. Qc7 {[%clk 0:00:23.5]} 35... Qe6 {[%clk
0:00:22.3]} 36. Qb8+ {[%clk 0:00:18.7]} 36... Kh7 {[%clk 0:00:22]} 37. Qb1+
{[%clk 0:00:19.6]} 37... g6 {[%clk 0:00:21.6]} 38. Qb7+ {[%clk 0:00:19.4]} 38...
Kg8 {[%clk 0:00:20]} 39. Qb8+ {[%clk 0:00:18.5]} 39... Kg7 {[%clk 0:00:20.1]}
40. Qc7+ {[%clk 0:00:18.9]} 40... Nf7 {[%clk 0:00:19.6]} 41. Qb6 {[%clk
0:00:17.7]} 41... Qxe3 {[%clk 0:00:16.7]} 42. a6 {[%clk 0:00:16.3]} 42... Qf4+
{[%clk 0:00:13.1]} 43. Kg1 {[%clk 0:00:16.2]} 43... Qc1+ {[%clk 0:00:12.5]} 44.
Kh2 {[%clk 0:00:16.4]} 44... Qf4+ {[%clk 0:00:10.7]} 45. Kg1 {[%clk 0:00:16.8]}
45... Ng5 {[%clk 0:00:10.1]} 46. Qb7+ {[%clk 0:00:12.8]} 46... Kf6 {[%clk
0:00:08.9]} 47. a7 {[%clk 0:00:11.5]} 47... Qxd4+ {[%clk 0:00:07]} 48. Kf1
{[%clk 0:00:07.7]} 48... Ne4 {[%clk 0:00:04.2]} 49. Ke2 {[%clk 0:00:04.5]} 49...
Qd2+ {[%clk 0:00:02.6]} 0-1

[Event "Early-Titled-Tuesday-Blitz-September-12-2023"]
[Site "Chess.com"]
[Date "2023.09.12"]
[Round "9"]
[White "Akylbek2021"]
[Black "verrbaa"]
[Result "1-0"]
[WhiteElo "2315"]
[BlackElo "2405"]
[TimeControl "180+1"]
[EndTime "9:46:10 PDT"]
[Termination "Akylbek2021 won by resignation"]

1. Nf3 {[%clk 0:03:00.9]} 1... Nf6 {[%clk 0:02:59.2]} 2. b3 {[%clk 0:03:01]}
2... d5 {[%clk 0:02:56.2]} 3. Bb2 {[%clk 0:03:01]} 3... e6 {[%clk 0:02:56.8]} 4.
e3 {[%clk 0:03:01.2]} 4... Be7 {[%clk 0:02:57.4]} 5. c4 {[%clk 0:03:01.4]} 5...
O-O {[%clk 0:02:56.1]} 6. Nc3 {[%clk 0:03:01.3]} 6... c5 {[%clk 0:02:54.9]} 7.
cxd5 {[%clk 0:02:58.8]} 7... exd5 {[%clk 0:02:45.9]} 8. d4 {[%clk 0:02:59]} 8...
b6 {[%clk 0:02:40.3]} 9. Be2 {[%clk 0:02:57.7]} 9... Bb7 {[%clk 0:02:39.8]} 10.
O-O {[%clk 0:02:58.2]} 10... Nbd7 {[%clk 0:02:37.7]} 11. Rc1 {[%clk 0:02:54.3]}
11... Re8 {[%clk 0:02:33]} 12. Ne5 {[%clk 0:02:36.4]} 12... a6 {[%clk
0:02:26.5]} 13. Bf3 {[%clk 0:02:31.8]} 13... cxd4 {[%clk 0:01:48.5]} 14. exd4
{[%clk 0:02:26.8]} 14... Bd6 {[%clk 0:01:48.3]} 15. Nxd7 {[%clk 0:01:56.9]}
15... Qxd7 {[%clk 0:01:49.2]} 16. Qd2 {[%clk 0:01:44.7]} 16... b5 {[%clk
0:01:42.6]} 17. Rfe1 {[%clk 0:01:42.4]} 17... Ne4 {[%clk 0:01:24.9]} 18. Qd3
{[%clk 0:01:26.4]} 18... f5 {[%clk 0:01:21.6]} 19. g3 {[%clk 0:00:50.1]} 19...
Re6 {[%clk 0:01:15.2]} 20. a4 {[%clk 0:00:48.6]} 20... b4 {[%clk 0:01:10.4]} 21.
Nd1 {[%clk 0:00:49]} 21... Rae8 {[%clk 0:01:04.4]} 22. Ne3 {[%clk 0:00:45.3]}
22... Qf7 {[%clk 0:00:56.8]} 23. Bxe4 {[%clk 0:00:39.1]} 23... fxe4 {[%clk
0:00:55.3]} 24. Qf1 {[%clk 0:00:34.7]} 24... Rf6 {[%clk 0:00:53.2]} 25. Rc2
{[%clk 0:00:33.3]} 25... h5 {[%clk 0:00:49.4]} 26. h4 {[%clk 0:00:32.3]} 26...
Rf3 {[%clk 0:00:46.3]} 27. Bc1 {[%clk 0:00:24.5]} 27... Bxg3 {[%clk 0:00:36.2]}
28. fxg3 {[%clk 0:00:16.6]} 28... Rxf1+ {[%clk 0:00:34.9]} 29. Rxf1 {[%clk
0:00:16.9]} 29... Qg6 {[%clk 0:00:33.8]} 30. Nf5 {[%clk 0:00:14.2]} 30... Kh8
{[%clk 0:00:16.9]} 31. Rc7 {[%clk 0:00:13.5]} 31... Bc8 {[%clk 0:00:11.3]} 32.
Rxg7 {[%clk 0:00:06]} 32... Qc6 {[%clk 0:00:11.2]} 33. Be3 {[%clk 0:00:03]}
33... Bxf5 {[%clk 0:00:08.5]} 34. Rxf5 {[%clk 0:00:03.9]} 34... Kxg7 {[%clk
0:00:08.8]} 35. Rxh5 {[%clk 0:00:03.5]} 35... Rh8 {[%clk 0:00:08]} 36. Rg5+
{[%clk 0:00:03.7]} 36... Kf7 {[%clk 0:00:08.5]} 37. Rf5+ {[%clk 0:00:03.6]}
37... Ke6 {[%clk 0:00:08]} 38. Re5+ {[%clk 0:00:03.7]} 38... Kd7 {[%clk
0:00:08.1]} 39. h5 {[%clk 0:00:03.9]} 39... Re8 {[%clk 0:00:07.6]} 40. Rg5
{[%clk 0:00:03.9]} 40... Qc2 {[%clk 0:00:07.6]} 41. Rg7+ {[%clk 0:00:03.9]}
41... Re7 {[%clk 0:00:07.4]} 42. Rg6 {[%clk 0:00:02.4]} 42... Qd1+ {[%clk
0:00:07.3]} 43. Kf2 {[%clk 0:00:02]} 43... Qe2+ {[%clk 0:00:08.2]} 44. Kxe2
{[%clk 0:00:02.3]} 44... Ke8 {[%clk 0:00:04.8]} 45. Rxa6 {[%clk 0:00:02.6]}
45... Rc7 {[%clk 0:00:04.4]} 46. h6 {[%clk 0:00:03.5]} 46... Rc2+ {[%clk
0:00:03.1]} 47. Bd2 {[%clk 0:00:04]} 47... Rc7 {[%clk 0:00:01.4]} 48. Ra8+
{[%clk 0:00:03.9]} 48... Kf7 {[%clk 0:00:01.7]} 49. g4 {[%clk 0:00:04.8]} 49...
Kg6 {[%clk 0:00:02]} 50. Bf4 {[%clk 0:00:05]} 50... Rf7 {[%clk 0:00:02]} 51. Bd2
{[%clk 0:00:05.1]} 51... Re7 {[%clk 0:00:01.8]} 52. g5 {[%clk 0:00:05.4]} 52...
e3 {[%clk 0:00:02.4]} 53. Bxe3 {[%clk 0:00:05.3]} 53... Re4 {[%clk 0:00:02.7]}
54. Kd3 {[%clk 0:00:05.7]} 54... Re8 {[%clk 0:00:02.7]} 55. Rxe8 {[%clk
0:00:05.2]} 1-0

[Event "Early-Titled-Tuesday-Blitz-September-12-2023"]
[Site "Chess.com"]
[Date "2023.09.12"]
[Round "9"]
[White "temus_galaktionov"]
[Black "Frolyanov_D"]
[Result "1/2-1/2"]
[WhiteElo "2821"]
[BlackElo "2675"]
[TimeControl "180+1"]
[EndTime "9:46:11 PDT"]
[Termination "Game drawn by agreement"]

1. d4 {[%clk 0:02:59.9]} 1... d5 {[%clk 0:02:59.5]} 2. Nf3 {[%clk 0:02:59.8]}
2... Nf6 {[%clk 0:02:59.2]} 3. c4 {[%clk 0:02:56.8]} 3... e6 {[%clk 0:02:59.2]}
4. Nc3 {[%clk 0:02:55.1]} 4... dxc4 {[%clk 0:02:59.4]} 5. e3 {[%clk 0:02:54.9]}
5... c5 {[%clk 0:02:58.5]} 6. Bxc4 {[%clk 0:02:54.8]} 6... a6 {[%clk 0:02:58.1]}
7. dxc5 {[%clk 0:02:53.4]} 7... Bxc5 {[%clk 0:02:51.9]} 8. Qxd8+ {[%clk
0:02:51.8]} 8... Kxd8 {[%clk 0:02:52.3]} 9. a3 {[%clk 0:02:52.7]} 9... b5 {[%clk
0:02:49.7]} 10. Bd3 {[%clk 0:02:52.9]} 10... Bb7 {[%clk 0:02:47.1]} 11. Ke2
{[%clk 0:02:53]} 11... Nbd7 {[%clk 0:02:46.4]} 12. Rd1 {[%clk 0:02:50.3]} 12...
Ke7 {[%clk 0:02:46.2]} 13. h3 {[%clk 0:02:50.4]} 13... Rac8 {[%clk 0:02:45.3]}
14. e4 {[%clk 0:02:48.5]} 14... h6 {[%clk 0:02:34.8]} 15. Bf4 {[%clk 0:02:45.9]}
15... Rhd8 {[%clk 0:02:32.9]} 16. Nd2 {[%clk 0:02:23.6]} 16... Bb6 {[%clk
0:02:10.7]} 17. Nb3 {[%clk 0:02:23.2]} 17... Nc5 {[%clk 0:01:49.3]} 18. Nxc5
{[%clk 0:02:22.3]} 18... Bxc5 {[%clk 0:01:50.2]} 19. Rac1 {[%clk 0:02:19.1]}
19... Bd4 {[%clk 0:01:48.5]} 20. f3 {[%clk 0:02:19.4]} 20... e5 {[%clk
0:01:43.8]} 21. Be3 {[%clk 0:02:16.5]} 21... Nh5 {[%clk 0:01:40.9]} 22. Rc2
{[%clk 0:01:56]} 22... Nf4+ {[%clk 0:01:36.9]} 23. Bxf4 {[%clk 0:01:56.1]} 23...
exf4 {[%clk 0:01:37.8]} 24. Ke1 {[%clk 0:01:43.2]} 24... Be3 {[%clk 0:01:33.7]}
25. Be2 {[%clk 0:01:41.8]} 25... Rxd1+ {[%clk 0:01:30.2]} 26. Kxd1 {[%clk
0:01:41.7]} 26... Rd8+ {[%clk 0:01:23.6]} 27. Nd5+ {[%clk 0:01:36.7]} 27... Bxd5
{[%clk 0:01:22.4]} 28. exd5 {[%clk 0:01:37.6]} 28... Rxd5+ {[%clk 0:01:22.2]}
29. Ke1 {[%clk 0:01:38.3]} 29... Rd7 {[%clk 0:01:17.4]} 30. Rc6 {[%clk
0:01:36.4]} 30... Rd2 {[%clk 0:01:05.5]} 31. Rxa6 {[%clk 0:01:26.4]} 31... Rxb2
{[%clk 0:01:03.8]} 32. Kd1 {[%clk 0:01:24]} 32... b4 {[%clk 0:00:51.6]} 33. axb4
{[%clk 0:01:23]} 33... Rxb4 {[%clk 0:00:52.1]} 34. Bd3 {[%clk 0:01:15.8]} 34...
Rb2 {[%clk 0:00:49.6]} 35. Bc2 {[%clk 0:01:16.2]} 35... Rb5 {[%clk 0:00:41.4]}
36. Bd3 {[%clk 0:01:09.2]} 36... Rc5 {[%clk 0:00:41]} 37. Ra1 {[%clk 0:01:02.9]}
37... Rg5 {[%clk 0:00:38.9]} 38. Ra2 {[%clk 0:01:01.5]} 38... Rc5 {[%clk
0:00:36.5]} 39. Ke2 {[%clk 0:00:59.4]} 39... Rc1 {[%clk 0:00:34.5]} 40. Be4
{[%clk 0:00:56.5]} 40... Rg1 {[%clk 0:00:33.2]} 41. Kd3 {[%clk 0:00:56.7]} 41...
g6 {[%clk 0:00:28.4]} 42. Bd5 {[%clk 0:00:56.9]} 42... Rd1+ {[%clk 0:00:24.6]}
43. Kc4 {[%clk 0:00:48]} 43... Rd4+ {[%clk 0:00:23.8]} 44. Kc5 {[%clk
0:00:48.4]} 44... Rd2+ {[%clk 0:00:14.1]} 45. Kc6 {[%clk 0:00:46.3]} 45... Rxa2
{[%clk 0:00:12.5]} 46. Bxa2 {[%clk 0:00:47.2]} 46... f5 {[%clk 0:00:12.1]} 47.
Kd5 {[%clk 0:00:46.1]} 47... Kf6 {[%clk 0:00:12.5]} 48. Kc4 {[%clk 0:00:33.5]}
48... Kg5 {[%clk 0:00:12.8]} 49. Kd3 {[%clk 0:00:34]} 49... Kh4 {[%clk
0:00:13.4]} 50. Ke2 {[%clk 0:00:29.3]} 50... Kg3 {[%clk 0:00:13.5]} 51. Kf1
{[%clk 0:00:29.7]} 51... g5 {[%clk 0:00:13.5]} 52. Be6 {[%clk 0:00:30.1]} 52...
g4 {[%clk 0:00:12.4]} 53. hxg4 {[%clk 0:00:31]} 53... fxg4 {[%clk 0:00:12.6]}
54. Bxg4 {[%clk 0:00:31.5]} 54... Kh4 {[%clk 0:00:12.3]} 55. Bh3 {[%clk
0:00:31.8]} 55... Kg3 {[%clk 0:00:12.5]} 56. Ke2 {[%clk 0:00:32.4]} 56... Kh4
{[%clk 0:00:12.8]} 57. Kd3 {[%clk 0:00:33.3]} 57... Kg5 {[%clk 0:00:12.7]} 58.
Ke4 {[%clk 0:00:34.2]} 58... Bf2 {[%clk 0:00:11.2]} 59. Ke5 {[%clk 0:00:34.6]}
59... Bg3 {[%clk 0:00:11.4]} 60. Ke6 {[%clk 0:00:34.6]} 60... Bh4 {[%clk
0:00:11.6]} 61. Bg4 {[%clk 0:00:34.4]} 61... Bg3 {[%clk 0:00:12.1]} 62. Kf7
{[%clk 0:00:34.8]} 62... Bh4 {[%clk 0:00:12.5]} 63. Bh3 {[%clk 0:00:35.3]} 63...
Bg3 {[%clk 0:00:13.1]} 1/2-1/2

[Event "Early-Titled-Tuesday-Blitz-September-12-2023"]
[Site "Chess.com"]
[Date "2023.09.12"]
[Round "9"]
[White "twofoxniel"]
[Black "Viacheslav92"]
[Result "1-0"]
[WhiteElo "2621"]
[BlackElo "2499"]
[TimeControl "180+1"]
[EndTime "9:46:12 PDT"]
[Termination "twofoxniel won on time"]

1. e4 {[%clk 0:03:00.9]} 1... e5 {[%clk 0:02:55.6]} 2. Nf3 {[%clk 0:03:00.4]}
2... Nc6 {[%clk 0:02:46.8]} 3. Bc4 {[%clk 0:03:00.6]} 3... Bc5 {[%clk 0:02:42]}
4. c3 {[%clk 0:03:00.1]} 4... Nf6 {[%clk 0:02:35.8]} 5. d4 {[%clk 0:02:59.7]}
5... exd4 {[%clk 0:02:36.7]} 6. cxd4 {[%clk 0:02:59.6]} 6... Bb4+ {[%clk
0:02:37.2]} 7. Nc3 {[%clk 0:02:59.6]} 7... Nxe4 {[%clk 0:02:32.5]} 8. O-O {[%clk
0:02:59.4]} 8... Bxc3 {[%clk 0:02:32]} 9. d5 {[%clk 0:02:58.7]} 9... Bf6 {[%clk
0:02:27.5]} 10. Re1 {[%clk 0:02:58.4]} 10... Ne7 {[%clk 0:02:19.7]} 11. Rxe4
{[%clk 0:02:58.5]} 11... d6 {[%clk 0:02:20.1]} 12. Bg5 {[%clk 0:02:56.6]} 12...
Bxg5 {[%clk 0:02:19.1]} 13. Nxg5 {[%clk 0:02:56.5]} 13... h6 {[%clk 0:02:15.6]}
14. Qe2 {[%clk 0:02:55]} 14... hxg5 {[%clk 0:02:13.6]} 15. Re1 {[%clk
0:02:55.1]} 15... Be6 {[%clk 0:02:13.5]} 16. dxe6 {[%clk 0:02:56]} 16... f6
{[%clk 0:02:14]} 17. Bd3 {[%clk 0:02:41.6]} 17... c6 {[%clk 0:02:09.5]} 18. Rb4
{[%clk 0:02:39.4]} 18... Qc7 {[%clk 0:02:03.4]} 19. h3 {[%clk 0:02:39.3]} 19...
a5 {[%clk 0:01:47.2]} 20. Rb3 {[%clk 0:02:36.7]} 20... a4 {[%clk 0:01:44.7]} 21.
Rc3 {[%clk 0:02:30.4]} 21... Ra5 {[%clk 0:01:35.7]} 22. Qc2 {[%clk 0:02:26.2]}
22... Rh4 {[%clk 0:01:19.9]} 23. g3 {[%clk 0:01:52.7]} 23... Rxh3 {[%clk
0:01:12.4]} 24. Kg2 {[%clk 0:01:53]} 24... Rh6 {[%clk 0:01:11.5]} 25. Rh1 {[%clk
0:01:52.7]} 25... Rxh1 {[%clk 0:01:03.4]} 26. Kxh1 {[%clk 0:01:51.5]} 26... Nd5
{[%clk 0:01:04]} 27. Rc4 {[%clk 0:01:45.3]} 27... Ke7 {[%clk 0:00:59.5]} 28. Be2
{[%clk 0:01:36.1]} 28... Rc5 {[%clk 0:00:48.4]} 29. Qg6 {[%clk 0:01:26.8]} 29...
Kd8 {[%clk 0:00:27.3]} 30. Rxa4 {[%clk 0:01:24.2]} 30... Nb6 {[%clk 0:00:19.2]}
31. Bh5 {[%clk 0:01:09.9]} 31... Qe7 {[%clk 0:00:17.9]} 32. Rb4 {[%clk
0:01:08.2]} 32... Rb5 {[%clk 0:00:14]} 33. Rxb5 {[%clk 0:01:04.3]} 33... cxb5
{[%clk 0:00:14.9]} 34. Qe4 {[%clk 0:01:03.2]} 34... d5 {[%clk 0:00:12.1]} 35.
Qe3 {[%clk 0:01:03.5]} 35... Kc7 {[%clk 0:00:10.5]} 36. Bg4 {[%clk 0:01:01.5]}
36... Nc4 {[%clk 0:00:10.1]} 37. Qd4 {[%clk 0:01:01.7]} 37... Ne5 {[%clk
0:00:08.8]} 38. Bh3 {[%clk 0:00:57.1]} 38... g4 {[%clk 0:00:08.5]} 39. Bg2
{[%clk 0:00:57.5]} 39... Qxe6 {[%clk 0:00:07.9]} 40. Bxd5 {[%clk 0:00:57.8]}
40... Qd6 {[%clk 0:00:07.9]} 41. b3 {[%clk 0:00:54.2]} 41... b6 {[%clk 0:00:07]}
42. Qc3+ {[%clk 0:00:53.8]} 42... Qc5 {[%clk 0:00:07.5]} 43. Qd2 {[%clk
0:00:51.6]} 43... b4 {[%clk 0:00:06.9]} 44. Kg2 {[%clk 0:00:51.3]} 44... Qc3
{[%clk 0:00:06.5]} 45. Qf4 {[%clk 0:00:50.5]} 45... Qd3 {[%clk 0:00:04.7]} 46.
Be4 {[%clk 0:00:49.9]} 46... Qd4 {[%clk 0:00:04.5]} 47. Qf5 {[%clk 0:00:48.5]}
47... Kd6 {[%clk 0:00:03.5]} 48. Bb7 {[%clk 0:00:47.4]} 48... Ke7 {[%clk
0:00:02.6]} 49. Qc8 {[%clk 0:00:46.3]} 49... Qd6 {[%clk 0:00:02]} 50. Qg8 {[%clk
0:00:44.8]} 50... Qd7 {[%clk 0:00:02.2]} 51. Qxg7+ {[%clk 0:00:45]} 51... Kd6
{[%clk 0:00:02.8]} 52. Qxf6+ {[%clk 0:00:44.7]} 52... Qe6 {[%clk 0:00:02.3]} 53.
Qxe6+ {[%clk 0:00:44.4]} 53... Kxe6 {[%clk 0:00:03.2]} 54. f4 {[%clk 0:00:42.9]}
54... gxf3+ {[%clk 0:00:02.9]} 55. Bxf3 {[%clk 0:00:43.1]} 55... Nd3 {[%clk
0:00:03.6]} 56. Be2 {[%clk 0:00:41.6]} 56... Nc1 {[%clk 0:00:04]} 57. Bc4+
{[%clk 0:00:42.2]} 57... Ke5 {[%clk 0:00:02.7]} 58. Kf3 {[%clk 0:00:42.6]} 58...
Nxa2 {[%clk 0:00:03.3]} 59. Kg4 {[%clk 0:00:43.3]} 59... Nc3 {[%clk 0:00:03.9]}
60. Kh5 {[%clk 0:00:43.7]} 60... b5 {[%clk 0:00:04.3]} 61. Bg8 {[%clk
0:00:43.2]} 61... Ne4 {[%clk 0:00:02.9]} 62. Kh4 {[%clk 0:00:42.6]} 1-0